bitfinex-derivatives/quotes_BTCF0:USTF0_20240814
["timestamp","ask_amount","ask_price","bid_price","bid_amount"]
[1723640153937,0.081952,60976.0,60972.0,0.08144757]
[1723640154148,0.37079946,60977.0,60972.0,0.08144757]
[1723640154843,0.37079946,60977.0,60973.0,0.08144757]
[1723640155038,0.37079946,60977.0,60972.0,0.08144757]
[1723640155239,0.37079946,60977.0,60973.0,0.08144757]
[1723640155542,0.00024604,60980.0,60976.0,0.3608]
[1723640155944,0.354,60978.0,60977.0,0.12485033]
[1723640156147,0.435949,60978.0,60977.0,0.08155074]
[1723640156338,0.354,60978.0,60976.0,0.3608]
[1723640157149,0.00024604,60980.0,60976.0,0.3608]
[1723640157648,0.00024604,60980.0,60976.0,0.44235074]
[1723640158342,0.081951,60977.0,60976.0,0.3608]
[1723640158547,0.354,60978.0,60976.0,0.3608]
[1723640159147,0.081951,60977.0,60976.0,0.3608]
[1723640159651,0.354,60978.0,60976.0,0.3608]
[1723640159847,0.081951,60977.0,60972.0,0.08155074]
[1723640160051,0.081951,60977.0,60970.0,0.3608]
[1723640160243,0.358,60978.0,60970.0,0.3608]
[1723640160437,0.081963,60969.0,60967.0,0.00024604]
[1723640160939,0.354,60971.0,60955.0,0.38587651]
[1723640160940,0.354,60971.0,60962.0,0.08155074]
[1723640161137,0.354,60971.0,60954.0,0.08155074]
[1723640161138,0.354,60963.0,60954.0,0.08155074]
[1723640161336,0.354,60963.0,60949.0,0.45553645]
[1723640161337,0.354,60956.0,60953.0,0.08155074]
[1723640161538,0.081956,60974.0,60954.0,0.3608]
[1723640161539,0.354,60973.0,60954.0,0.3608]
[1723640161737,0.354,60973.0,60962.0,0.3608]
[1723640161944,0.535535,60989.0,60962.0,0.3608]
[1723640161945,0.3608,60986.0,60972.0,0.3608]
[1723640162141,0.3608,60986.0,60977.0,0.3608]
[1723640162541,0.00987184,60993.0,60982.0,0.3608]
[1723640162748,0.00024604,60988.0,60983.0,0.08155074]
[1723640162939,0.00024604,60988.0,60987.0,0.442737]
[1723640163145,0.00024604,60988.0,60987.0,0.48563058]
[1723640163453,0.3608,60998.0,60984.0,0.08140265]
[1723640163655,0.3608,60998.0,60996.0,0.081924]
[1723640164151,0.3608,61009.0,60997.0,0.85264]
[1723640164356,0.3608,61009.0,61004.0,0.3608]
[1723640164542,0.442697,61017.0,61005.0,0.081913]
[1723640165152,0.36104604,61017.0,61005.0,0.00024604]
[1723640165356,0.081909,61008.0,61005.0,0.00024604]
[1723640165542,0.081912,61006.0,61005.0,0.00024604]
[1723640165742,0.354,61008.0,61005.0,0.00024604]
[1723640165948,0.3608,61010.0,61005.0,0.00024604]
[1723640166453,0.36104604,61017.0,61005.0,0.00024604]
[1723640166454,0.00024604,61017.0,61009.0,0.3608]
[1723640166751,0.00024604,61017.0,61014.0,0.3608]
[1723640167547,0.00024604,61017.0,61014.0,0.442701]
[1723640167747,0.00024604,61017.0,61014.0,0.3608]
[1723640167949,0.00024604,61017.0,61009.0,0.3608]
[1723640168152,0.00024604,61017.0,61009.0,0.442708]
[1723640168346,0.00024604,61017.0,61014.0,0.3608]
[1723640169354,0.00024604,61017.0,61006.0,0.95564]
[1723640169355,0.081898,61016.0,61006.0,0.95564]
[1723640169557,0.081902,61014.0,61006.0,0.4964]
[1723640169749,0.081902,61014.0,61005.0,0.00024604]
[1723640169750,0.3608,61013.0,61005.0,0.00024604]
[1723640169951,0.3608,61013.0,61009.0,0.007]
[1723640170155,0.354,61015.0,61009.0,0.007]
[1723640170156,0.081902,61014.0,61009.0,0.007]
[1723640170453,0.354,61015.0,61009.0,0.007]
[1723640170454,0.7148,61015.0,61009.0,0.007]
[1723640170653,0.081906,61010.0,61009.0,0.007]
[1723640170856,0.7967,61015.0,61005.0,0.00024604]
[1723640170857,0.081902,61014.0,61005.0,0.00024604]
[1723640171061,0.71608,61015.0,61005.0,0.00024604]
[1723640171254,0.7967,61015.0,61005.0,0.00024604]
[1723640171453,0.7148,61015.0,61014.0,0.001]
[1723640171761,0.3608,61015.0,61014.0,0.001]
[1723640172054,0.00024604,61017.0,61016.0,0.081898]
[1723640172458,0.00024604,61017.0,61016.0,0.973578]
[1723640172956,0.00024604,61017.0,61014.0,0.3618]
[1723640173157,0.0819,61015.0,61014.0,0.3618]
[1723640173360,0.00024604,61017.0,61014.0,0.3618]
[1723640174349,0.00024604,61017.0,61014.0,0.443701]
[1723640174557,0.00024604,61017.0,61016.0,0.081898]
[1723640174748,0.00024604,61017.0,61016.0,0.573578]
[1723640174948,0.08188,61030.0,61022.0,0.08189]
[1723640175257,0.08188,61030.0,61016.0,1.25248]
[1723640175258,0.00997151,61030.0,61025.0,0.3608]
[1723640175561,0.354,61035.0,61025.0,0.3608]
[1723640176251,0.435873,61035.0,61025.0,0.3608]
[1723640176454,0.00024584,61036.0,61030.0,0.3608]
[1723640176656,0.00024584,61036.0,61035.0,0.442673]
[1723640177056,0.081856,61048.0,61039.0,0.081867]
[1723640177358,0.3608,61049.0,61042.0,0.3608]
[1723640178055,0.081862,61043.0,61042.0,0.3608]
[1723640178254,0.3608,61049.0,61042.0,0.3608]
[1723640179457,0.3608,61049.0,61042.0,0.85224]
[1723640179658,0.3608,61049.0,61042.0,0.3608]
[1723640179850,0.00024584,61052.0,61043.0,0.49144]
[1723640180049,0.00024584,61052.0,61047.0,0.3608]
[1723640180557,0.08209584,61052.0,61047.0,0.3608]
[1723640180858,0.00024584,61052.0,61047.0,0.3608]
[1723640181164,0.012,61048.0,61047.0,0.3608]
[1723640181757,0.012,61048.0,61047.0,1.25224]
[1723640182060,0.012,61048.0,61047.0,0.3618]
[1723640183555,0.00024584,61052.0,61047.0,0.3608]
[1723640183858,0.00024584,61052.0,61048.0,0.081854]
[1723640184162,0.00024584,61052.0,61047.0,0.3608]
[1723640184563,0.081853,61050.0,61047.0,0.3608]
[1723640185356,0.00024584,61052.0,61047.0,0.3608]
[1723640186056,0.00024584,61052.0,61042.0,0.442662]
[1723640186258,0.01424584,61052.0,61048.0,0.001]
[1723640186663,0.01424584,61052.0,61048.0,0.3618]
[1723640187362,0.01424584,61052.0,61051.0,0.081851]
[1723640187557,0.00024584,61052.0,61051.0,0.081851]
[1723640188165,0.00024584,61052.0,61048.0,0.3608]
[1723640188166,0.014,61050.0,61048.0,0.3608]
[1723640188465,0.014,61050.0,61048.0,0.3618]
[1723640188766,0.014,61050.0,61049.0,0.573254]
[1723640188970,0.00024584,61052.0,61051.0,0.081851]
[1723640191264,0.00993963,61062.0,61056.0,0.081844]
[1723640191463,0.00993963,61062.0,61056.0,0.442644]
[1723640191464,0.081837,61062.0,61056.0,0.442644]
[1723640191667,0.442635,61064.0,61056.0,0.3608]
[1723640191864,0.081843,61057.0,61056.0,0.3608]
[1723640192066,0.081847,61055.0,61049.0,0.442654]
[1723640192268,0.081847,61054.0,61049.0,0.442654]
[1723640192561,0.3703531,61064.0,61049.0,0.3608]
[1723640192865,0.081853,61050.0,61049.0,0.3608]
[1723640193557,0.095853,61050.0,61049.0,0.3608]
[1723640193763,0.095853,61050.0,61049.0,0.3618]
[1723640193958,0.456653,61050.0,61039.0,0.06467196]
[1723640194176,0.354,61040.0,61034.0,0.66469751]
[1723640194468,0.3608,61044.0,61034.0,0.66469751]
[1723640194664,0.081871,61037.0,61034.0,0.66469751]
[1723640194870,0.3608,61044.0,61034.0,0.3608]
[1723640195060,0.081869,61038.0,61034.0,0.3608]
[1723640195769,0.0097594,61044.0,61034.0,0.3608]
[1723640195968,0.00024584,61045.0,61034.0,0.3608]
[1723640196290,0.00024584,61045.0,61039.0,0.081866]
[1723640196572,0.00024584,61045.0,61035.0,0.06467196]
[1723640196573,0.081861,61044.0,61035.0,0.06467196]
[1723640196775,0.081862,61043.0,61034.0,0.3608]
[1723640196978,0.3608,61043.0,61034.0,0.3608]
[1723640197167,0.3608,61043.0,61034.0,0.42547196]
[1723640197368,0.442663,61043.0,61035.0,0.06467196]
[1723640197570,0.442663,61043.0,61034.0,0.3608]
[1723640197571,0.442663,61043.0,61034.0,0.42547196]
[1723640197777,0.442663,61043.0,61034.0,0.42647196]
[1723640197778,0.3608,61043.0,61034.0,0.42647196]
[1723640198074,0.00024584,61045.0,61044.0,0.081861]
[1723640198373,0.00024584,61045.0,61044.0,0.14653296]
[1723640198576,0.00024584,61045.0,61044.0,0.081861]
[1723640199276,0.081863,61042.0,61041.0,0.3608]
[1723640199474,0.7148,61042.0,61035.0,0.00084]
[1723640199666,0.7148,61042.0,61033.0,0.00024584]
[1723640199667,0.081873,61035.0,61033.0,0.00024584]
[1723640199876,0.081879,61031.0,61027.0,0.42597835]
[1723640200177,0.08188,61030.0,61027.0,0.42597835]
[1723640200477,0.081881,61029.0,61028.0,0.06503163]
[1723640200675,0.081881,61029.0,61027.0,0.36094672]
[1723640200676,0.081877,61033.0,61027.0,0.42597835]
[1723640200871,0.081878,61032.0,61028.0,0.06503163]
[1723640201074,0.081878,61032.0,61027.0,0.36094672]
[1723640201267,0.081878,61032.0,61027.0,0.42597835]
[1723640201467,0.36375884,61035.0,61027.0,0.42597835]
[1723640201673,0.081875,61034.0,61027.0,0.42597835]
[1723640201981,0.081877,61032.0,61027.0,0.42597835]
[1723640202274,0.01175884,61035.0,61029.0,0.081881]
[1723640202469,0.01175884,61035.0,61030.0,0.14691063]
[1723640202669,0.01175884,61035.0,61030.0,0.081879]
[1723640202873,0.002,61035.0,61030.0,0.14691063]
[1723640203068,0.002,61035.0,61031.0,0.06503163]
[1723640203374,0.002,61035.0,61034.0,0.081874]
[1723640203576,0.00024584,61045.0,61044.0,0.081861]
[1723640203777,0.00024584,61045.0,61044.0,0.442661]
[1723640204372,0.00967586,61056.0,61051.0,0.08185]
[1723640204580,0.442637,61062.0,61051.0,0.14703623]
[1723640204874,0.081849,61053.0,61052.0,0.06518623]
[1723640205075,0.081849,61053.0,61044.0,0.442659]
[1723640205076,0.163702,61051.0,61049.0,0.06518623]
[1723640205278,0.081857,61047.0,61045.0,0.06518623]
[1723640205474,0.081855,61049.0,61045.0,0.06518623]
[1723640205677,0.081859,61045.0,61044.0,0.06518623]
[1723640205881,0.081861,61044.0,61043.0,0.06518623]
[1723640206375,0.081862,61043.0,61042.0,0.30389751]
[1723640206576,0.081865,61041.0,61040.0,0.06548758]
[1723640206877,0.081865,61041.0,61040.0,0.00024584]
[1723640207073,0.65521,61041.0,61040.0,0.00024584]
[1723640208080,0.65521,61041.0,61035.0,0.06524174]
[1723640208081,0.081871,61036.0,61035.0,0.06524174]
[1723640208375,0.081873,61035.0,61033.0,0.06524174]
[1723640208580,0.081873,61035.0,61033.0,0.06523178]
[1723640208776,0.49152,61034.0,61031.0,0.06523178]
[1723640208975,0.49152,61034.0,61027.0,0.00014672]
[1723640208976,0.081882,61028.0,61027.0,0.00014672]
[1723640209170,0.435882,61028.0,61027.0,0.00014672]
[1723640209368,0.435882,61028.0,61020.0,0.06523178]
[1723640209369,0.081889,61023.0,61020.0,0.06523178]
[1723640209571,0.7148,61021.0,61018.0,0.06521169]
[1723640209776,0.7148,61021.0,61016.0,0.06521169]
[1723640209982,0.081898,61016.0,61013.0,0.06521169]
[1723640210181,0.3608,61014.0,61013.0,0.06521169]
[1723640210372,0.00014672,61014.0,61012.0,0.00024584]
[1723640210874,0.00014672,61014.0,61013.0,0.28816054]
[1723640211071,0.00024584,61019.0,61018.0,0.081895]
[1723640211272,0.00024584,61019.0,61018.0,0.56747251]
[1723640211571,0.571167,61040.0,61018.0,0.56747251]
[1723640211572,0.00978817,61037.0,61019.0,0.49164]
[1723640211775,0.081877,61032.0,61028.0,0.08141331]
[1723640212082,0.081878,61031.0,61027.0,0.42593432]
[1723640212281,0.081882,61028.0,61027.0,0.3608]
[1723640213771,0.081882,61028.0,61024.0,0.06513432]
[1723640213772,0.081884,61027.0,61024.0,0.06513432]
[1723640213977,0.081884,61027.0,61023.0,0.00024584]
[1723640214172,0.081884,61027.0,61023.0,0.06538016]
[1723640214384,0.44268,61030.0,61023.0,0.00024584]
[1723640214583,0.08188,61030.0,61024.0,0.42593432]
[1723640214883,0.00966029,61032.0,61024.0,0.42593432]
[1723640214884,0.081876,61033.0,61026.0,0.06513432]
[1723640215079,0.354,61041.0,61024.0,0.442686]
[1723640215080,0.081881,61030.0,61025.0,0.06513432]
[1723640215379,0.081882,61029.0,61024.0,0.42593432]
[1723640215682,0.081885,61027.0,61024.0,0.42593432]
[1723640215874,0.081875,61034.0,61024.0,0.42593432]
[1723640216074,0.081875,61034.0,61028.0,0.06513432]
[1723640216268,0.00024584,61035.0,61028.0,0.06513432]
[1723640216877,0.08211884,61035.0,61028.0,0.06513432]
[1723640217073,0.081875,61034.0,61028.0,0.06513432]
[1723640217482,0.081877,61033.0,61026.0,0.06513432]
[1723640217786,0.081877,61032.0,61027.0,0.06513432]
[1723640217982,0.081877,61032.0,61028.0,0.06513432]
[1723640218174,0.081877,61032.0,61027.0,0.06513432]
[1723640218378,0.081877,61032.0,61026.0,0.06513432]
[1723640218582,0.081877,61032.0,61028.0,0.06513432]
[1723640218874,0.00124584,61035.0,61028.0,0.06513432]
[1723640218875,0.001,61033.0,61028.0,0.06513432]
[1723640219074,0.001,61033.0,61029.0,0.06513432]
[1723640219278,0.001,61033.0,61030.0,0.06513432]
[1723640219480,0.081878,61031.0,61029.0,0.06513432]
[1723640219687,0.081878,61031.0,61028.0,0.06513432]
[1723640219980,0.081878,61031.0,61029.0,0.06513432]
[1723640220185,0.081878,61031.0,61023.0,0.08213484]
[1723640220186,0.081878,61031.0,61030.0,0.06513432]
[1723640220384,0.081878,61031.0,61023.0,0.16354815]
[1723640220385,0.001,61033.0,61027.0,0.081883]
[1723640220576,0.00024584,61035.0,61030.0,0.3608]
[1723640220776,0.00024584,61035.0,61034.0,0.081874]
[1723640220995,0.08185,61052.0,61042.0,0.081863]
[1723640221184,0.37049029,61053.0,61045.0,0.06515232]
[1723640221376,0.37049029,61053.0,61046.0,0.06515232]
[1723640221377,0.081857,61047.0,61046.0,0.06515232]
[1723640221575,0.081858,61046.0,61045.0,0.06515232]
[1723640221779,1.24544,61046.0,61042.0,0.42595232]
[1723640221975,0.081858,61046.0,61042.0,0.42595232]
[1723640222284,0.081858,61046.0,61045.0,0.06515232]
[1723640222484,0.081859,61045.0,61044.0,0.06515232]
[1723640222786,0.081859,61045.0,61043.0,0.06515232]
[1723640222981,0.84544,61045.0,61042.0,0.06515232]
[1723640223178,0.3608,61043.0,61038.0,0.00024584]
[1723640223376,0.599604,61039.0,61038.0,0.00024584]
[1723640223579,0.599604,61039.0,61032.0,0.06515232]
[1723640223580,0.163752,61033.0,61032.0,0.06515232]
[1723640223786,0.08188,61030.0,61029.0,0.06523185]
[1723640224084,0.3608,61031.0,61015.0,0.06523455]
[1723640224387,0.3608,61031.0,61011.0,0.4865]
[1723640224388,0.081902,61013.0,61011.0,0.4865]
[1723640224582,0.3608,61016.0,61011.0,0.4865]
[1723640226576,0.081901,61015.0,61011.0,0.4865]
[1723640227488,0.081895,61019.0,61013.0,0.3608]
[1723640227789,0.442691,61022.0,61013.0,0.442702]
[1723640227974,0.442691,61022.0,61013.0,0.3608]
[1723640228181,0.09163517,61022.0,61014.0,0.081901]
[1723640228384,0.00152,61039.0,61022.0,0.081889]
[1723640228695,0.0965191,61059.0,61022.0,0.081889]
[1723640228696,0.06437914,61058.0,61038.0,0.7216]
[1723640228878,0.3608,61062.0,61046.0,0.3608]
[1723640229083,0.081847,61054.0,61053.0,0.3608]
[1723640229475,0.00024584,61060.0,61047.0,0.00024584]
[1723640229688,0.081845,61056.0,61051.0,0.3608]
[1723640229891,0.081845,61056.0,61052.0,0.3608]
[1723640230288,0.081841,61059.0,61052.0,0.3608]
[1723640231082,0.081847,61055.0,61052.0,0.3608]
[1723640231481,0.081848,61054.0,61052.0,0.3608]
[1723640232176,0.081849,61053.0,61052.0,0.3608]
[1723640232380,0.00978665,61060.0,61052.0,0.3608]
[1723640232581,0.081847,61055.0,61052.0,0.3608]
[1723640233185,0.00978665,61060.0,61052.0,0.3608]
[1723640233388,0.081843,61058.0,61052.0,0.3608]
[1723640233589,0.081847,61055.0,61052.0,0.3608]
[1723640233781,0.00978665,61060.0,61049.0,0.3608]
[1723640233782,0.3608,61057.0,61049.0,0.3608]
[1723640233980,0.014,61056.0,61049.0,0.3608]
[1723640234486,0.014,61056.0,61055.0,0.3608]
[1723640234686,0.09162665,61060.0,61055.0,0.3608]
[1723640234687,0.014,61058.0,61055.0,0.3608]
[1723640235191,0.081845,61056.0,61055.0,0.3608]
[1723640235888,0.16369,61056.0,61055.0,0.3608]
[1723640236096,0.081853,61050.0,61049.0,0.3608]
[1723640236299,0.081853,61050.0,61047.0,0.00024584]
[1723640236300,0.081855,61048.0,61047.0,0.00024584]
[1723640236591,0.16371,61048.0,61047.0,0.00024584]
[1723640236781,0.081857,61047.0,61034.0,0.06515847]
[1723640236980,0.3608,61046.0,61033.0,0.42595847]
[1723640237192,0.08187,61037.0,61033.0,0.3608]
[1723640237488,0.354,61049.0,61033.0,0.3608]
[1723640237691,0.081861,61044.0,61033.0,0.3608]
[1723640237892,0.081874,61034.0,61033.0,0.3608]
[1723640238281,0.163748,61034.0,61033.0,0.3608]
[1723640238689,0.081874,61034.0,61033.0,0.3608]
[1723640240793,0.00024584,61045.0,61033.0,0.3608]
[1723640240989,0.00024584,61045.0,61040.0,0.3608]
[1723640241793,0.00024584,61045.0,61044.0,0.081861]
[1723640241997,0.00024584,61045.0,61043.0,0.3608]
[1723640242195,0.00024584,61045.0,61044.0,0.081861]
[1723640242492,0.014,61048.0,61043.0,0.40962451]
[1723640242901,0.014,61048.0,61043.0,0.3608]
[1723640243594,0.00955361,61051.0,61044.0,0.081861]
[1723640243595,0.002,61045.0,61044.0,0.081861]
[1723640244206,0.00024584,61052.0,61044.0,0.081861]
[1723640244496,0.00024584,61052.0,61051.0,0.3608]
[1723640244997,0.00024584,61052.0,61051.0,0.442651]
[1723640245498,0.00024584,61052.0,61051.0,0.3608]
[1723640246508,0.00024584,61052.0,61051.0,0.442651]
[1723640246795,0.4807,61079.0,61053.0,0.354]
[1723640246986,0.4807,61079.0,61051.0,1.37688579]
[1723640246987,0.16366,61068.0,61067.0,0.3608]
[1723640247187,0.16366,61068.0,61060.0,0.06506981]
[1723640247188,0.081827,61070.0,61062.0,0.04880235]
[1723640247490,0.081827,61069.0,61060.0,0.3608]
[1723640247685,0.081838,61061.0,61060.0,0.3608]
[1723640248591,0.71504426,61071.0,61060.0,0.7216]
[1723640248592,0.08183,61068.0,61060.0,0.7216]
[1723640248793,0.00024426,61071.0,61060.0,0.7216]
[1723640248988,0.081838,61061.0,61060.0,0.7216]
[1723640249189,0.081838,61061.0,61060.0,0.3608]
[1723640249408,0.71504426,61071.0,61060.0,0.3608]
[1723640249409,0.00024426,61071.0,61060.0,0.3608]
[1723640249587,0.00024426,61071.0,61065.0,0.3608]
[1723640249787,0.245493,61066.0,61059.0,0.00024561]
[1723640250096,0.7148,61070.0,61059.0,0.00024561]
[1723640250097,0.081836,61063.0,61059.0,0.00024561]
[1723640250398,0.081839,61061.0,61059.0,0.00024561]
[1723640250695,0.081839,61060.0,61059.0,0.00024561]
[1723640251490,0.081837,61062.0,61059.0,0.00024561]
[1723640251700,0.7288,61070.0,61061.0,0.3608]
[1723640251701,0.014,61070.0,61061.0,0.3608]
[1723640252000,0.081833,61065.0,61061.0,0.3608]
[1723640252195,0.081834,61064.0,61061.0,0.3608]
[1723640252400,0.081835,61063.0,61061.0,0.3608]
[1723640252603,0.081835,61063.0,61059.0,0.00024561]
[1723640252791,0.081839,61060.0,61059.0,0.00024561]
[1723640254304,0.011,61061.0,61059.0,0.00024561]
[1723640254994,0.01096156,61063.0,61059.0,0.00024561]
[1723640255193,0.01096156,61063.0,61061.0,0.3608]
[1723640255495,0.01096156,61063.0,61061.0,0.40960235]
[1723640255699,0.09279656,61063.0,61061.0,0.3608]
[1723640256296,0.081837,61062.0,61061.0,0.3608]
[1723640257196,0.01296156,61063.0,61061.0,0.3608]
[1723640258810,0.003,61063.0,61061.0,0.3608]
[1723640259401,0.00990974,61065.0,61061.0,0.3608]
[1723640259608,0.081827,61069.0,61064.0,0.06519976]
[1723640259904,0.08206926,61071.0,61066.0,0.3608]
[1723640260092,0.081826,61070.0,61069.0,0.04889394]
[1723640260296,0.00024426,61071.0,61069.0,0.04889394]
[1723640260700,0.01003553,61071.0,61069.0,0.04889394]
[1723640260897,0.08206926,61071.0,61069.0,0.04889394]
[1723640261097,0.00024426,61071.0,61070.0,0.04889394]
[1723640261306,0.00024426,61071.0,61070.0,0.06519976]
[1723640261513,0.00024426,61071.0,61070.0,0.06516758]
[1723640261810,0.00024426,61071.0,61068.0,0.442628]
[1723640262402,0.00024426,61071.0,61068.0,0.3608]
[1723640262806,0.00624426,61071.0,61070.0,0.04886822]
[1723640263007,0.00624426,61071.0,61061.0,0.08133726]
[1723640263008,0.00624426,61071.0,61069.0,0.04886822]
[1723640263306,0.01424426,61071.0,61069.0,0.04887157]
[1723640263995,0.081826,61070.0,61069.0,0.04887157]
[1723640264300,0.081827,61069.0,61068.0,0.04886395]
[1723640264506,0.01424426,61071.0,61068.0,0.04886459]
[1723640264806,0.081827,61069.0,61068.0,0.04886459]
[1723640265106,0.081828,61068.0,61067.0,0.04886459]
[1723640265496,0.00024426,61071.0,61067.0,0.04885705]
[1723640265701,0.00024426,61071.0,61066.0,0.04885705]
[1723640265702,0.08183,61067.0,61066.0,0.04885705]
[1723640265903,0.081832,61065.0,61064.0,0.04885705]
[1723640266201,0.081827,61069.0,61063.0,0.40965705]
[1723640266407,0.081834,61064.0,61063.0,0.40965705]
[1723640266611,0.081834,61064.0,61063.0,0.3608]
[1723640267707,0.081834,61064.0,61063.0,0.40966965]
[1723640267906,0.163668,61064.0,61063.0,0.3608]
[1723640268114,0.163668,61064.0,61063.0,0.40966992]
[1723640268303,0.163668,61064.0,61063.0,0.3608]
[1723640269408,0.081834,61064.0,61063.0,0.3608]
[1723640269910,0.09178959,61064.0,61063.0,0.3608]
[1723640270503,0.09578959,61064.0,61063.0,0.3608]
[1723640270711,0.10378959,61064.0,61063.0,0.3608]
[1723640271209,0.10378959,61064.0,61063.0,0.42610573]
[1723640271412,0.18562359,61064.0,61063.0,0.06530573]
[1723640271714,0.18562359,61064.0,61059.0,0.00024561]
[1723640271715,0.081839,61060.0,61059.0,0.00024561]
[1723640271912,0.163678,61060.0,61059.0,0.00024561]
[1723640272117,0.081851,61051.0,61050.0,0.08133726]
[1723640272415,0.081851,61051.0,61041.0,0.66469751]
[1723640272416,0.081853,61045.0,61041.0,0.08225726]
[1723640272613,0.081853,61045.0,61044.0,0.06532879]
[1723640272805,0.354,61048.0,61035.0,0.3608]
[1723640272806,0.081854,61044.0,61040.0,0.44213726]
[1723640273003,0.3608,61052.0,61040.0,0.44213726]
[1723640273217,0.081845,61051.0,61050.0,0.04899575]
[1723640273618,0.245538,61050.0,61049.0,0.04899575]
[1723640273820,0.245538,61050.0,61040.0,0.44213726]
[1723640273821,0.163696,61048.0,61046.0,0.04899575]
[1723640274011,0.1637,61046.0,61045.0,0.04899575]
[1723640274212,0.5177,61046.0,61045.0,0.04899575]
[1723640274513,0.163704,61045.0,61044.0,0.04899575]
[1723640274909,0.573292,61045.0,61044.0,0.04899575]
[1723640275105,0.00953741,61051.0,61042.0,0.06532766]
[1723640275321,0.081848,61048.0,61047.0,0.04896158]
[1723640275504,0.081848,61048.0,61047.0,0.04894574]
[1723640275710,0.081845,61050.0,61046.0,0.3608]
[1723640275906,0.081845,61050.0,61047.0,0.06532766]
[1723640276114,0.081846,61049.0,61048.0,0.06532766]
[1723640276413,0.00024561,61057.0,61048.0,0.06525449]
[1723640276617,0.081842,61053.0,61052.0,0.04893927]
[1723640276820,0.0101881,61057.0,61052.0,0.04893927]
[1723640277014,0.00024561,61057.0,61053.0,0.3608]
[1723640277211,0.081837,61056.0,61055.0,0.04893927]
[1723640277417,0.081838,61055.0,61052.0,0.06525449]
[1723640277614,0.081838,61055.0,61051.0,0.3608]
[1723640277615,0.081839,61054.0,61053.0,0.06525449]
[1723640277817,0.01116369,61057.0,61053.0,0.06525449]
[1723640278022,0.442612,61075.0,61060.0,0.08183]
[1723640278023,0.081819,61070.0,61060.0,0.08183]
[1723640278321,0.08079331,61081.0,61069.0,0.3608]
[1723640278322,0.3608,61081.0,61069.0,0.3608]
[1723640278515,0.081818,61070.0,61069.0,0.3608]
[1723640278713,0.081818,61070.0,61067.0,0.06523208]
[1723640279020,0.081816,61072.0,61068.0,0.06523208]
[1723640279021,0.081819,61069.0,61068.0,0.06523208]
[1723640279213,0.354,61074.0,61066.0,0.06523208]
[1723640279214,0.081822,61067.0,61066.0,0.06523208]
[1723640279522,0.081823,61066.0,61065.0,0.06523208]
[1723640279714,0.16365,61065.0,61064.0,0.04891374]
[1723640279911,0.081826,61064.0,61063.0,0.04891374]
[1723640280115,0.163654,61063.0,61062.0,0.04915935]
[1723640280611,0.081824,61066.0,61062.0,0.00024561]
[1723640280822,0.354,61067.0,61065.0,0.04891009]
[1723640281044,0.081826,61064.0,61063.0,0.04891009]
[1723640281224,0.245481,61063.0,61062.0,0.00024561]
[1723640281424,0.736761,61063.0,61062.0,0.00024561]
[1723640281629,1.136761,61063.0,61062.0,0.00024561]
[1723640282021,0.081838,61055.0,61054.0,0.04892116]
[1723640282427,0.081839,61054.0,61053.0,0.04892116]
[1723640284028,0.081845,61050.0,61049.0,0.53643208]
[1723640284436,0.3608,61058.0,61049.0,0.53643208]
[1723640284437,0.08184,61054.0,61049.0,0.53643208]
[1723640284636,0.081841,61053.0,61049.0,0.4712]
[1723640284832,0.081841,61053.0,61050.0,0.065216]
[1723640285027,0.081837,61056.0,61050.0,0.065216]
[1723640285232,0.00990781,61058.0,61055.0,0.3608]
[1723640285532,0.00024561,61060.0,61057.0,0.065216]
[1723640285932,0.00024561,61060.0,61058.0,0.065216]
[1723640286435,0.08207661,61060.0,61058.0,0.065216]
[1723640286636,0.081833,61059.0,61058.0,0.065216]
[1723640286936,0.00024561,61060.0,61055.0,0.3608]
[1723640286937,0.081834,61058.0,61057.0,0.065216]
[1723640287434,0.081836,61057.0,61055.0,0.3608]
[1723640287639,0.364736,61056.0,61055.0,0.3608]
[1723640288135,0.00024561,61060.0,61055.0,0.34699768]
[1723640288338,0.00024561,61060.0,61056.0,0.06521199]
[1723640288633,0.00024561,61060.0,61055.0,0.34699768]
[1723640288634,0.00024561,61060.0,61058.0,0.06521199]
[1723640288839,0.00024561,61060.0,61055.0,0.4285658]
[1723640289042,0.00024561,61060.0,61056.0,0.08156812]
[1723640289337,0.001,61057.0,61056.0,0.08156812]
[1723640289540,0.001,61057.0,61056.0,0.20625627]
[1723640289741,0.001,61057.0,61056.0,0.28809227]
[1723640289933,0.001,61057.0,61056.0,0.69788431]
[1723640290242,0.001,61057.0,61056.0,0.68622431]
[1723640290429,0.001,61057.0,61056.0,1.17758431]
[1723640290836,0.001,61057.0,61056.0,0.68622431]
[1723640291331,1e-08,61060.0,61059.0,0.081832]
[1723640291529,1e-08,61060.0,61059.0,0.20652031]
[1723640291734,1e-08,61060.0,61059.0,1.09784031]
[1723640292431,1e-08,61060.0,61059.0,1.10585886]
[1723640292827,1e-08,61060.0,61059.0,1.18769086]
[1723640293039,0.7144,61090.0,61060.0,0.49128]
[1723640293237,0.7144,61090.0,61084.0,0.04889688]
[1723640293238,0.081795,61087.0,61084.0,0.04889688]
[1723640293437,0.081796,61086.0,61082.0,0.04889688]
[1723640293638,0.0818,61083.0,61082.0,0.04889688]
[1723640293834,0.081802,61082.0,61081.0,0.04889688]
[1723640294137,0.081804,61081.0,61077.0,0.065167]
[1723640294440,0.081803,61081.0,61080.0,0.04886184]
[1723640294641,0.081803,61081.0,61080.0,0.04886087]
[1723640294939,0.081804,61080.0,61079.0,0.04886087]
[1723640295140,0.081804,61080.0,61075.0,0.42621261]
[1723640295141,0.081806,61079.0,61076.0,0.065167]
[1723640295330,0.0913819,61082.0,61076.0,0.065167]
[1723640295536,0.0095799,61082.0,61081.0,0.3608]
[1723640295734,0.081802,61082.0,61081.0,0.04884381]
[1723640295940,0.081796,61087.0,61080.0,0.04884381]
[1723640295941,0.081803,61081.0,61080.0,0.04884381]
[1723640296346,0.081804,61080.0,61079.0,0.04884381]
[1723640296731,0.081804,61080.0,61075.0,0.36104561]
[1723640296732,0.081806,61079.0,61075.0,0.36104561]
[1723640296933,0.0098668,61091.0,61077.0,0.3608]